{"text_format":"1","workbook":"xlsx","n_sheets":3,"sheets":["Лист1","Лист2","Лист3"],"not_rendered":{"charts":0,"images":0,"macros":1,"external_links":0,"defined_names":0,"comments":0,"pivot_tables":0},"unopened":[],"bounds":{"document_bytes":16777216,"sheet_cells":100000,"rows_first":2000,"rows_last":500,"rows_between":2000,"halvings":0,"cell_chars":16384,"cell_head_chars":4096},"cells_cut":0,"cells_raw":0,"read":"whole","date_system":"1900"}

{"sheet":"Лист1","index":0,"n_rows":141,"n_cols":2,"rows_kept":141,"cut":false,"hidden":false,"merged":[]}
["Имеем:",{"$f":"TRIM(DelRuText(A1))","v":":"}]
["HOLDER LCDS-5045 металлик кронштейн",{"$f":"TRIM(DelRuText(A2))","v":"HOLDER LCDS-5045"}]
["BOSCH TDA2365 Утюг Бош","BOSCH TDA2365"]
["BOSCH TDA702821I Утюг Бош","BOSCH TDA702821I"]
["BOSCH TDA46MOVE5 Утюг Бош","BOSCH TDA46MOVE5"]
["Philips HD9141/00 Йогуртница Филипс","Philips HD9141/00"]
["Фены SUPRA PHS-1200 silver/black","SUPRA PHS-1200 silver/black"]
["Фены SUPRA PHS-1200 white","SUPRA PHS-1200 white"]
["Фены SUPRA PHS-1210 white","SUPRA PHS-1210 white"]
["Фены SUPRA PHS-2020 red/black","SUPRA PHS-2020 red/black"]
["Фены SUPRA PHS-2020 silver/blue","SUPRA PHS-2020 silver/blue"]
["Аэрогрили SUPRA AGS-1101","SUPRA AGS-1101"]
["Gorenje BO71SY2B Духовой шкаф Горенье","Gorenje BO71SY2B"]
["Gorenje IT612SY2B Варочная панель Горенье","Gorenje IT612SY2B"]
["Daewoo RC-6880RA Пылесос Дэу","Daewoo RC-6880RA"]
["HOLDER TV-2680 черный+черное стекло стол","HOLDER TV-2680 +"]
["HOLDER TV-2580 черный+черное стекло стол","HOLDER TV-2580 +"]
["Indesit TT 85 Т 005 Холодильник Индезит","Indesit TT 85 005"]
["Чайники MYSTERY MEK-1620 white/grey","MYSTERY MEK-1620 white/grey"]
["BOSCH BSG8PRO3 Пылесос Бош","BOSCH BSG8PRO3"]
["Автосабвуферы MAC AUDIO STX 112 BP REFERENCE","MAC AUDIO STX 112 BP REFERENCE"]
["Автосабвуферы MAC AUDIO STX 112 R REFERENCE","MAC AUDIO STX 112 R REFERENCE"]
["Samsung ME83DR-1W Микроволновая печь Самсунг","Samsung ME83DR-1W"]
["Philips GC4912/80 Утюг Филипс","Philips GC4912/80"]
["Tefal FV9915 Утюг паровой","Tefal FV9915"]
["Весы SUPRA BSS-4061 wooden","SUPRA BSS-4061 wooden"]
["Соковыжималки SUPRA JES-1025","SUPRA JES-1025"]
["Термопоты SUPRA TPS-3240","SUPRA TPS-3240"]
["LG VK-89382HU Пылесос Эл Джи","LG VK-89382HU"]
["LG VK-89483RU Пылесос Эл Джи","LG VK-89483RU"]
["LG VK-75302HC Пылесос Эл Джи","LG VK-75302HC"]
["LG VK-75304HY Пылесос Эл Джи","LG VK-75304HY"]
["Gorenje ECT6SY2B Электрическая варочная панель Горенье","Gorenje ECT6SY2B"]
["Pioneer SE-MJ711-R наушники Пионер","Pioneer SE-MJ711-R"]
["Panasonic NC-PH30WTW Термопот Панасоник","Panasonic NC-PH30WTW"]
["Panasonic MX-GX1011WTQ Блендер Панасоник","Panasonic MX-GX1011WTQ"]
["Indesit KN1G217(W)/RU Плита газовая Индезит","Indesit KN1G217(W)/RU"]
["BOSCH WLK20163OE Стиральная машина Бош","BOSCH WLK20163OE"]
["BOSCH MFW45020 Мясорубка Бош","BOSCH MFW45020"]
["LED телевизоры MYSTERY MTV-1929LT2","LED MYSTERY MTV-1929LT2"]
["Пароварки MYSTERY MFS-1303","MYSTERY MFS-1303"]
["LED телевизоры MYSTERY MTV-2428LT2","LED MYSTERY MTV-2428LT2"]
["Hotpoint-Ariston MHR 940.1 (AN) /HA S Духовой шкаф Аристон","Hotpoint-Ariston MHR 940.1 (AN) /HA S"]
["Samsung AQ09TFBXSER Кондиционер внешний блок","Samsung AQ09TFBXSER"]
["Samsung ME83DR-1WX Микроволновая печь Самсунг","Samsung ME83DR-1WX"]
["Philips MCM1150/12 Музыкальный центр Филипс","Philips MCM1150/12"]
["Philips HR2744/40 Соковыжималка Филипс","Philips HR2744/40"]
["Philips HD4677/50 Чайник электрический Филипс","Philips HD4677/50"]
["Philips GC2910/20 Утюг Филипс","Philips GC2910/20"]
["Philips GC2920/70 Утюг Филипс","Philips GC2920/70"]
["Beko CSS 53010 GW Плита комбинированная Беко","Beko CSS 53010 GW"]
["Весы SUPRA BSS-2070","SUPRA BSS-2070"]
["LG F1089ND Стиральная машина Эл Джи","LG F1089ND"]
["LG GA-B489YEQZ Холодильник Эл Джи","LG GA-B489YEQZ"]
["LG F1296ND3 Стиральная машина Эл Джи","LG F1296ND3"]
["LG F1296ND4 Стиральная машина Эл Джи","LG F1296ND4"]
["LG F10B8MD Стиральная машина Эл Джи","LG F10B8MD"]
["LG F12B8MD Стиральная машина Эл Джи","LG F12B8MD"]
["LG F1081ND5 Стиральная машина Эл Джи","LG F1081ND5"]
["Gorenje G6N40ZBX Варочная панель Горенье","Gorenje G6N40ZBX"]
["Gorenje RKV42200E Холодильник Горенье","Gorenje RKV42200E"]
["Philips HD2636/40 Тостер Филипс","Philips HD2636/40"]
["Philips HP6521/01 Эпилятор Филипс","Philips HP6521/01"]
["Philips HQ6947/16 Бритва Филипс","Philips HQ6947/16"]
["Panasonic MX-GX1561WTQ Блендер Панасоник","Panasonic MX-GX1561WTQ"]
["Panasonic ER-GC50-K520 Триммер Панасоник",{"$f":"TRIM(DelRuText(A66))","v":"Panasonic ER-GC50-K520"}]
["HOLDER MWS-2003 черный кронштейн","HOLDER MWS-2003"]
["HOLDER LCDS-5019 черный глянец кронштейн","HOLDER LCDS-5019"]
["HOLDER LCDS-5020 черный глянец кронштейн","HOLDER LCDS-5020"]
["HOLDER LCDS-5046 черный глянец кронштейн","HOLDER LCDS-5046"]
["HOLDER LCDS-5026 черный глянец кронштейн","HOLDER LCDS-5026"]
["Комплект лапок антивибрационных GF-1","GF-1"]
["HOLDER LEDS-7012 черный глянец кронштейн","HOLDER LEDS-7012"]
["HOLDER LCDS-5025 черный глянец кронштейн","HOLDER LCDS-5025"]
["HOLDER LCDS-5083 черный глянец кронштейн","HOLDER LCDS-5083"]
["HOLDER LCDS-5084 черный глянец кронштейн","HOLDER LCDS-5084"]
["Panasonic NN-SD361MZPE Микроволновая печь Панасоник","Panasonic NN-SD361MZPE"]
["Panasonic NN-GD371MZPE Микроволновая печь Панасоник","Panasonic NN-GD371MZPE"]
["Daewoo KOR-6L05S Микроволновая печь Дэу","Daewoo KOR-6L05S"]
["Daewoo KOR-6L05W Микроволновая печь Дэу","Daewoo KOR-6L05W"]
["Daewoo KOR-6L0BS Микроволновая печь Дэу","Daewoo KOR-6L0BS"]
["Daewoo KOR-6L0BW Микроволновая печь Дэу","Daewoo KOR-6L0BW"]
["HOLDER MWS-2005 белый кронштейн","HOLDER MWS-2005"]
["HOLDER MWS-2005 металлик кронштейн","HOLDER MWS-2005"]
["Gorenje Резервуар для стиральной машины Горенье","Gorenje"]
["Philips AS351/12 Докстанция для Android Филипс","Philips AS351/12 Android"]
["LG SB36 Магнитола ЭлДжи","LG SB36"]
["Hotpoint-Ariston ARTXF 149 (EU) Стиральная машина Аристон","Hotpoint-Ariston ARTXF 149 (EU)"]
["Vestel AWM 840 Стиральная машина Вестел","Vestel AWM 840"]
["LG SB156 Магнитола ЭлДжи","LG SB156"]
["Gorenje EC52106AW Электрическая плита Горенье","Gorenje EC52106AW"]
["Gorenje EC52203AX Электрическая плита Горенье","Gorenje EC52203AX"]
["Panasonic SC-NA30EE-S Портативная аудио система, чехол синий","Panasonic SC-NA30EE-S ,"]
["GMP 1008 Кронштейн","GMP 1008"]
["Чайники SUPRA KES-1734","SUPRA KES-1734"]
["Panasonic SC-NT10E-A Беспроводная аудио система, цвет синий","Panasonic SC-NT10E-A ,"]
["Panasonic SC-NT10E-D Портативная акустическая система","Panasonic SC-NT10E-D"]
["Адаптер SUPRA WiFi Display","SUPRA WiFi Display"]
["Pioneer SE-MJ522-R наушники Пионер","Pioneer SE-MJ522-R"]
["Pioneer SE-MJ522-V наушники Пионер","Pioneer SE-MJ522-V"]
["Resonans CS2  тумба для тв","Resonans CS2"]
["Resonans CS5  тумба для тв","Resonans CS5"]
["Resonans CS7  тумба для тв","Resonans CS7"]
["BOSCH WAB24272CE Стиральная машина Бош","BOSCH WAB24272CE"]
["Philips PD7006/51 Портативный двд плеер Филипс","Philips PD7006/51"]
["Philips HC5410/15 Машинка для стрижки Филипс","Philips HC5410/15"]
["Philips PT723/16 Бритва Филипс","Philips PT723/16"]
["Philips CA6702/00 Фильтр для воды Филипс","Philips CA6702/00"]
["Philips GC8620/02 Паровая система Филипс","Philips GC8620/02"]
["Beko CSE 52120 GX плита газовая Беко","Beko CSE 52120 GX"]
["BEKO WKB 51031 PTMS Стиральная машина Беко","BEKO WKB 51031 PTMS"]
["Чайники SUPRA KES-1801","SUPRA KES-1801"]
["Весы SUPRA BSS-2060 orange","SUPRA BSS-2060 orange"]
["Плитки электрические SUPRA HS-110","SUPRA HS-110"]
["Плитки электрические SUPRA HS-210","SUPRA HS-210"]
["Щипцы для волос SUPRA HSS-1240","SUPRA HSS-1240"]
["Щипцы для волос SUPRA HSS-1230 pink","SUPRA HSS-1230 pink"]
["Щипцы для волос SUPRA HSS-1230 beige","SUPRA HSS-1230 beige"]
["Щипцы для волос SUPRA HSS-1150","SUPRA HSS-1150"]
["Щипцы для волос SUPRA HSS-1140","SUPRA HSS-1140"]
["Весы SUPRA BSS-2061 pink","SUPRA BSS-2061 pink"]
["Весы SUPRA BSS-2061 silver","SUPRA BSS-2061 silver"]
["Фены SUPRA PHS-1211 pink","SUPRA PHS-1211 pink"]
["Фены SUPRA PHS-2004 pink","SUPRA PHS-2004 pink"]
["Фены SUPRA PHS-2004 beige","SUPRA PHS-2004 beige"]
["Фены SUPRA PHS-1680 orange","SUPRA PHS-1680 orange"]
["Фены SUPRA PHS-1680 blue","SUPRA PHS-1680 blue"]
["Весы SUPRA BSS-6900L","SUPRA BSS-6900L"]
["Машинки для стрижки/Триммеры SUPRA HCS-204","/ SUPRA HCS-204"]
["Машинки для стрижки/Триммеры SUPRA HCS-205",{"$f":"TRIM(DelRuText(A130))","v":"/ SUPRA HCS-205"}]
["Машинки для стрижки/Триммеры SUPRA HCS-620","/ SUPRA HCS-620"]
["Мясорубки SUPRA MGS-2000","SUPRA MGS-2000"]
["Наборы маникюрные SUPRA MPS-106 blue","SUPRA MPS-106 blue"]
["Наборы маникюрные SUPRA MPS-106 pink","SUPRA MPS-106 pink"]
["Наборы маникюрные SUPRA MPS-107 pink","SUPRA MPS-107 pink"]
["Аэрогрили SUPRA AGS-1211","SUPRA AGS-1211"]
["Аэрогрили SUPRA AGS-1241","SUPRA AGS-1241"]
["Блендеры SUPRA HBS-625 white/ivory","SUPRA HBS-625 white/ivory"]
["Кофемолки SUPRA CGS-327 ivory","SUPRA CGS-327 ivory"]
["Машинки для стрижки/Триммеры SUPRA HCS-202 blue","/ SUPRA HCS-202 blue"]
["Машинки для стрижки/Триммеры SUPRA NTS-101 blue","/ SUPRA NTS-101 blue"]

{"sheet":"Лист2","index":1,"n_rows":0,"n_cols":0,"rows_kept":0,"cut":false,"hidden":false,"merged":[]}

{"sheet":"Лист3","index":2,"n_rows":0,"n_cols":0,"rows_kept":0,"cut":false,"hidden":false,"merged":[]}